bitfinex/quotes_BTCUSD_20251031
["timestamp","ask_amount","ask_price","bid_price","bid_amount"]
[1761914888069,2.17225993,109930.0,109920.0,0.18027535]
[1761914888942,2.04490616,109930.0,109920.0,0.18027535]
[1761914889150,2.49279646,109930.0,109920.0,0.18027535]
[1761914890974,2.17225993,109930.0,109920.0,0.18027535]
[1761914891180,2.04490616,109930.0,109920.0,0.18027535]
[1761914891387,2.43907664,109930.0,109920.0,0.18027535]
[1761914892500,0.04490616,109930.0,109920.0,0.21104028]
[1761914892710,0.40289436,109930.0,109920.0,0.21104028]
[1761914892922,0.39449711,109930.0,109920.0,0.21104028]
[1761914893067,0.00032663,109930.0,109920.0,0.21104028]
[1761914895598,0.00032663,109930.0,109920.0,0.18027535]
[1761914896020,2.50032663,109930.0,109920.0,0.18027535]
[1761914896234,2.00032663,109930.0,109920.0,0.18027535]
[1761914897054,2.39449711,109930.0,109920.0,0.18027535]
[1761914898484,2.40290686,109930.0,109920.0,0.18027535]
[1761914898715,0.00032663,109930.0,109920.0,0.66399785]
[1761914898953,0.00032663,109930.0,109920.0,0.73562181]
[1761914899802,0.00032663,109930.0,109920.0,0.34145133]
[1761914903848,0.00032663,109930.0,109920.0,0.18027535]
[1761914903849,0.01647663,109930.0,109920.0,0.18027535]
[1761914904057,0.4274917,109930.0,109920.0,0.18027535]
[1761914904274,2.55484547,109930.0,109920.0,0.18027535]
[1761914904930,2.98519823,109930.0,109920.0,0.001]
[1761914905131,2.61513775,109930.0,109920.0,0.001]
[1761914905331,2.63197649,109930.0,109920.0,0.001]
[1761914905541,3.13536185,109930.0,109920.0,0.001]
[1761914905906,3.47536185,109930.0,109920.0,0.001]
[1761914906123,2.96726236,109930.0,109920.0,0.001]
[1761914906317,2.96726236,109930.0,109920.0,0.01609]
[1761914906791,2.96826236,109930.0,109920.0,0.01609]
[1761914907153,2.96826236,109930.0,109920.0,0.01509]
[1761914907357,0.16354763,109920.0,109910.0,0.02318]
[1761914907563,2.5661327,109920.0,109910.0,0.02318]
[1761914907764,2.97645318,109920.0,109910.0,0.01509]
[1761914907970,2.97645318,109920.0,109910.0,0.14246694]
[1761914908600,2.97645318,109920.0,109910.0,0.14346694]
[1761914909335,2.83293783,109920.0,109910.0,0.16764694]
[1761914909549,2.43876735,109920.0,109910.0,0.16764694]
[1761914909950,2.83293783,109920.0,109910.0,0.16764694]
[1761914910325,2.43876735,109920.0,109910.0,0.16764694]
[1761914910508,2.43876735,109920.0,109910.0,0.1992354]
[1761914910677,2.5661327,109920.0,109910.0,0.1992354]
[1761914912118,2.5822827,109920.0,109910.0,0.002]
[1761914912315,3.00056318,109920.0,109910.0,0.002]
[1761914912522,2.97645318,109920.0,109910.0,0.01709]
[1761914914234,2.96803859,109920.0,109910.0,0.01709]
[1761914915539,2.97645859,109920.0,109910.0,0.01709]
[1761914917177,2.97645859,109920.0,109910.0,0.02884]
[1761914917583,2.97645859,109920.0,109910.0,0.002]
[1761914917785,3.8837124,109920.0,109910.0,0.002]
[1761914918028,3.89209178,109920.0,109910.0,0.002]
[1761914918555,3.4979213,109920.0,109910.0,0.002]
[1761914918778,3.46881207,109920.0,109910.0,0.002]
[1761914919198,3.46981207,109920.0,109910.0,0.001]
[1761914919651,3.47081207,109920.0,109910.0,0.001]
[1761914919871,3.47081207,109920.0,109890.0,0.14944051]
[1761914919872,0.16357081,109900.0,109890.0,0.14944051]
[1761914920087,2.57389129,109900.0,109890.0,0.02204094]
[1761914920289,2.57389129,109900.0,109890.0,0.03713094]
[1761914920688,2.57389129,109900.0,109890.0,0.16453106]
[1761914920868,2.55774129,109900.0,109890.0,0.18771106]
[1761914921074,2.55774129,109900.0,109890.0,0.19071106]
[1761914922105,2.16357081,109900.0,109890.0,0.19071106]
[1761914922318,2.55774129,109900.0,109890.0,0.19071106]
[1761914922524,2.55774129,109900.0,109890.0,0.19171106]
[1761914922937,2.99217177,109900.0,109890.0,0.00539094]
[1761914923798,2.99217177,109900.0,109890.0,0.00239094]
[1761914924010,2.99317177,109900.0,109890.0,0.00239094]
[1761914924216,3.08299078,109900.0,109890.0,0.00239094]
[1761914924837,3.08299078,109900.0,109890.0,0.00139094]
[1761914924838,3.45303587,109900.0,109890.0,0.00139094]
[1761914925161,3.45403587,109900.0,109890.0,0.00139094]
[1761914926010,3.84920635,109900.0,109890.0,0.00139094]
[1761914926168,3.87684644,109900.0,109890.0,0.00139094]
[1761914926363,3.88493551,109900.0,109890.0,0.00139094]
[1761914926566,3.90420046,109900.0,109890.0,0.00139094]
[1761914926971,3.92092168,109900.0,109890.0,0.00139094]
[1761914927583,3.91992168,109900.0,109890.0,0.00139094]
[1761914928120,3.92492168,109900.0,109890.0,0.00139094]
[1761914928278,3.92792168,109900.0,109890.0,0.00139094]
[1761914928446,3.92492168,109900.0,109890.0,0.00139094]
[1761914928846,3.92692168,109900.0,109890.0,0.00139094]
[1761914929165,2.74441024,109900.0,109890.0,0.00139094]
[1761914929361,3.50270611,109900.0,109890.0,0.00139094]
[1761914930168,3.92692168,109900.0,109890.0,0.00139094]
[1761914930501,3.92092168,109900.0,109890.0,0.00139094]
[1761914930708,3.92392168,109900.0,109890.0,0.00139094]
[1761914931413,3.92192168,109900.0,109890.0,0.00139094]
[1761914931630,3.92292168,109900.0,109890.0,0.00139094]
[1761914933089,3.95202975,109900.0,109890.0,0.00139094]
[1761914933354,3.92292168,109900.0,109890.0,0.00139094]
[1761914934461,3.93719652,109900.0,109890.0,0.00139094]
[1761914935108,3.95147641,109900.0,109890.0,0.00139094]
[1761914935807,3.93719652,109900.0,109890.0,0.00139094]
[1761914936935,3.96630459,109900.0,109890.0,0.00139094]
[1761914938777,3.98058466,109900.0,109890.0,0.00139094]
[1761914939477,3.58730618,109900.0,109890.0,0.00139094]
[1761914941336,3.13253654,109900.0,109890.0,0.00139094]
[1761914941580,3.06280675,109900.0,109890.0,0.00139094]
[1761914941811,2.69869675,109900.0,109890.0,0.00139094]
[1761914942026,2.64408027,109900.0,109890.0,0.02960094]
[1761914942252,3.03869675,109900.0,109890.0,0.02960094]
[1761914942476,3.02441668,109900.0,109890.0,0.02960094]
[1761914942706,3.04388546,109900.0,109890.0,0.02960094]
[1761914943432,3.0576096,109900.0,109890.0,0.02960094]
[1761914943700,3.01352195,109900.0,109890.0,0.02960094]
[1761914943952,3.4777098,109900.0,109890.0,0.00139094]
[1761914944183,3.4787098,109900.0,109890.0,0.00139094]
[1761914944411,3.08309332,109900.0,109890.0,0.00139094]
[1761914944656,3.08409332,109900.0,109890.0,0.00139094]
[1761914945525,3.05404823,109900.0,109890.0,0.00139094]
[1761914945853,3.03024823,109900.0,109890.0,0.01757094]
[1761914946054,3.44866471,109900.0,109890.0,0.00139094]
[1761914946265,3.52810578,109900.0,109890.0,0.00139094]
[1761914946703,3.1334893,109900.0,109890.0,0.00139094]
[1761914946899,3.52810578,109900.0,109890.0,0.00139094]
[1761914947340,3.42785522,109900.0,109890.0,0.00139094]
[1761914947488,3.42685522,109900.0,109890.0,0.00139094]
[1761914947947,3.24876416,109900.0,109890.0,0.00139094]
[1761914948078,2.79587387,109880.0,109870.0,8e-05]
[1761914948483,3.00427588,109880.0,109870.0,0.00022491]
[1761914948709,3.02807588,109880.0,109870.0,0.00022491]
[1761914948940,3.05544683,109880.0,109870.0,0.00022491]
[1761914950117,3.39544683,109880.0,109860.0,1e-08]
[1761914950354,2.94692626,109850.0,109840.0,0.0004]
[1761914950573,2.94692626,109850.0,109840.0,0.00088315]
[1761914950574,3.2742896,109850.0,109840.0,0.00088315]
[1761914950789,3.37737449,109850.0,109840.0,0.00088315]
[1761914951264,3.38917585,109850.0,109840.0,0.00088315]
[1761914951474,3.45906065,109850.0,109840.0,0.00088315]
[1761914951676,3.48643924,109850.0,109840.0,0.00088315]
[1761914952092,3.45706404,109850.0,109840.0,0.00088315]
[1761914952301,3.42644647,109850.0,109840.0,0.00088315]
[1761914952721,3.42844647,109850.0,109840.0,0.00088315]
[1761914953359,1.94229747,109810.0,109800.0,0.16565451]
[1761914953569,0.7961666,109850.0,109840.0,0.01618]
[1761914953570,2.64124787,109850.0,109840.0,0.01618]
[1761914953782,0.01580136,109850.0,109840.0,0.01618]
[1761914953994,0.01580136,109850.0,109840.0,0.05596794]
[1761914954173,0.01580136,109850.0,109840.0,0.18342606]
[1761914954390,0.01380136,109850.0,109840.0,0.18342606]
[1761914954593,0.01380136,109850.0,109840.0,0.16785812]
[1761914954806,2.0,109850.0,109840.0,0.16790634]
[1761914955451,2.001,109850.0,109840.0,0.17790634]
[1761914955649,0.001,109850.0,109840.0,0.17790634]
[1761914956123,0.001,109850.0,109840.0,1.00756713]
[1761914956312,0.001,109850.0,109840.0,1.32935883]
[1761914956746,2.84,109890.0,109880.0,0.12741172]
[1761914956958,2.0,109900.0,109890.0,0.12740012]
[1761914957165,2.02511592,109900.0,109890.0,0.17975012]
[1761914957307,2.00837197,109900.0,109890.0,0.17975012]
[1761914957521,2.0,109900.0,109890.0,0.19795013]
[1761914957930,2.00048252,109900.0,109890.0,0.19795013]
[1761914958326,2.00048252,109900.0,109890.0,0.23088632]
[1761914958532,2.00048252,109900.0,109890.0,0.21268631]
[1761914958841,2.00048252,109900.0,109890.0,0.21668631]
[1761914959295,0.00048252,109900.0,109890.0,0.21668631]
[1761914959667,0.00048252,109900.0,109890.0,0.99548772]
[1761914960381,0.00048252,109900.0,109890.0,0.3338572]
[1761914960994,0.00048252,109900.0,109890.0,0.30650532]
[1761914967022,0.00048252,109900.0,109890.0,1.0228396]
[1761914968055,0.00048252,109900.0,109890.0,0.3338572]
[1761914968500,0.00048252,109900.0,109890.0,0.18375012]
[1761914968730,0.00048252,109900.0,109890.0,0.18362912]
[1761914969438,2.01569252,109900.0,109890.0,0.15940912]
[1761914969645,2.16405333,109900.0,109890.0,0.05695]
[1761914969847,2.16405333,109900.0,109890.0,0.15953012]
[1761914969848,2.0518748,109900.0,109890.0,0.15953012]
[1761914970914,2.17926333,109900.0,109890.0,0.004]
[1761914971123,2.20425333,109900.0,109890.0,0.004]
[1761914971361,2.89323573,109900.0,109890.0,0.004]
[1761914971979,2.20425333,109900.0,109890.0,0.004]
[1761914972317,2.53618228,109890.0,109880.0,0.12763344]
[1761914972526,2.03618228,109890.0,109880.0,0.12763344]
[1761914972838,2.03618228,109890.0,109880.0,0.14416344]
[1761914973425,2.03718228,109890.0,109880.0,0.14416344]
[1761914973746,2.03718228,109890.0,109880.0,0.16898344]
[1761914973944,0.03618228,109890.0,109880.0,0.16898344]
[1761914974146,0.0366648,109900.0,109890.0,0.12740012]
[1761914974314,0.0366648,109900.0,109890.0,0.18105012]
[1761914975832,0.0366648,109900.0,109890.0,0.18205012]
[1761914976245,2.5366648,109900.0,109890.0,0.18205012]
[1761914976480,2.0518748,109900.0,109890.0,0.15723012]
[1761914977118,2.0366648,109900.0,109890.0,0.18205012]
[1761914978455,0.0366648,109900.0,109890.0,0.21301848]
[1761914978874,0.0366648,109900.0,109890.0,0.18205012]
[1761914979283,0.0366648,109900.0,109890.0,0.20025013]
[1761914979696,0.03614239,109900.0,109890.0,0.20025013]
[1761914980317,0.34,109910.0,109900.0,0.12738853]
[1761914980463,0.34,109910.0,109900.0,0.16873853]
[1761914980670,2.0,109910.0,109900.0,0.16873853]
[1761914981552,2.001,109910.0,109900.0,0.16873853]
[1761914981758,0.03818228,109910.0,109900.0,0.16873853]
[1761914982521,0.03718228,109910.0,109900.0,0.16873853]
[1761914982717,0.03818228,109910.0,109900.0,0.16873853]
[1761914982919,0.03718228,109910.0,109900.0,0.16873853]
[1761914983130,2.55139228,109910.0,109900.0,0.01653]
[1761914983258,2.18820019,109910.0,109900.0,0.01653]
[1761914983474,2.0,109900.0,109890.0,0.17362012]
[1761914983677,2.0,109900.0,109890.0,0.17366834]
[1761914983884,2.0,109900.0,109890.0,0.19019834]
[1761914985682,2.0,109900.0,109890.0,0.19319834]
[1761914986084,2.0,109900.0,109890.0,0.19419834]
[1761914986965,2.0,109900.0,109890.0,0.19399099]
[1761914988074,2.0,109900.0,109890.0,0.22706352]
[1761914989430,0.03618228,109910.0,109890.0,0.22706352]
[1761914989644,0.0445934,109910.0,109900.0,0.16631853]
[1761914991969,0.0445934,109910.0,109900.0,0.16731853]
[1761914992221,2.35262201,109920.0,109910.0,0.12737694]
[1761914992431,2.37784325,109920.0,109910.0,0.17766694]
[1761914992861,2.41402553,109920.0,109910.0,0.17766694]
[1761914993534,2.41502553,109920.0,109910.0,0.17766694]
[1761914994151,2.41602553,109920.0,109910.0,0.17766694]
[1761914995242,2.54239088,109920.0,109910.0,0.05029]
[1761914995454,2.54239088,109920.0,109910.0,0.05129]
[1761914995611,2.54239088,109920.0,109910.0,0.17866694]
[1761914995815,2.54139088,109920.0,109910.0,0.17866694]
[1761914996348,2.07402553,109920.0,109910.0,0.17866694]
[1761914996568,2.05721137,109920.0,109910.0,0.17866694]
[1761914996922,2.04880429,109920.0,109910.0,0.17866694]
[1761914997116,2.05720891,109920.0,109910.0,0.17866694]
[1761915000692,2.00945222,109920.0,109910.0,0.21151488]
[1761915000930,2.00945222,109920.0,109910.0,0.97211959]
[1761915000931,0.0010476,109920.0,109910.0,0.97211959]
[1761915001365,0.0010476,109920.0,109910.0,0.73092504]
[1761915002262,2.0,109950.0,109940.0,0.12733839]
[1761915002501,2.36519908,109950.0,109940.0,0.16749839]
[1761915002706,2.40138136,109950.0,109940.0,0.16750218]
[1761915003577,2.41722613,109950.0,109940.0,0.14344218]
[1761915003795,2.99234458,109950.0,109940.0,0.12734218]
[1761915004023,2.99234458,109950.0,109940.0,0.12834218]
[1761915004237,2.99234458,109950.0,109940.0,0.001]
[1761915004480,3.01019458,109950.0,109940.0,0.001]
[1761915004705,3.10001359,109950.0,109940.0,0.001]
[1761915006093,2.53618228,109930.0,109920.0,0.16052287]
[1761915006289,2.06971197,109930.0,109920.0,0.15256287]
[1761915006514,2.03618228,109920.0,109910.0,0.16279694]
[1761915006719,2.03618228,109920.0,109910.0,0.15483694]
[1761915006720,2.17924763,109920.0,109910.0,0.15483694]
[1761915006924,2.18763643,109920.0,109910.0,0.15483694]
[1761915007130,2.06027108,109920.0,109910.0,0.15483694]
[1761915007581,2.06027108,109920.0,109910.0,0.17889694]
[1761915007582,2.03618228,109920.0,109910.0,0.17889694]
[1761915008990,2.03618228,109920.0,109910.0,0.18389694]
[1761915009207,2.03618228,109920.0,109910.0,0.18589694]
[1761915009415,2.03618228,109920.0,109910.0,0.18389694]
[1761915009611,2.17924763,109920.0,109910.0,0.15483694]
[1761915009816,2.17924763,109920.0,109910.0,0.15583694]
[1761915010355,2.05188228,109920.0,109910.0,0.15883694]
[1761915010786,2.17924763,109920.0,109910.0,0.15583694]
[1761915011383,2.14306535,109920.0,109910.0,0.15483694]
[1761915011703,2.17924763,109920.0,109910.0,0.15483694]
[1761915012021,2.17924763,109920.0,109910.0,0.15583694]
[1761915012437,2.16354763,109920.0,109910.0,0.17989694]
[1761915014636,2.17958763,109920.0,109910.0,0.02846]
[1761915014838,2.14340535,109920.0,109910.0,0.02846]
[1761915015064,2.26940664,109920.0,109910.0,0.001]
[1761915015288,3.07604449,109920.0,109910.0,0.001]
[1761915015977,0.16356522,109910.0,109890.0,0.17393051]
[1761915016188,2.0,109900.0,109890.0,0.17393051]
[1761915016597,2.0,109900.0,109890.0,0.19059051]
[1761915017042,2.0,109900.0,109890.0,0.19063873]
[1761915017872,2.0,109900.0,109890.0,0.19163873]
[1761915018721,2.0,109900.0,109890.0,0.19263873]
[1761915019145,2.0,109900.0,109890.0,0.19163873]
[1761915019570,2.0,109900.0,109890.0,0.19463873]
[1761915020683,0.18019081,109900.0,109890.0,0.17034873]
[1761915020892,0.16357081,109900.0,109890.0,0.19328873]
[1761915021102,0.03618228,109900.0,109890.0,0.19328873]
[1761915021516,0.03618228,109900.0,109890.0,0.26170199]
[1761915021930,0.03618228,109900.0,109890.0,0.26270199]
[1761915022339,0.03618228,109900.0,109890.0,0.26170199]
[1761915022748,0.03618228,109900.0,109890.0,0.58662004]
[1761915023389,0.03618228,109900.0,109890.0,0.19228873]
[1761915024459,0.03618228,109900.0,109890.0,0.19328873]
[1761915027928,0.03618228,109900.0,109890.0,0.58762004]
[1761915028832,0.03618228,109900.0,109890.0,0.19328873]
[1761915029028,0.03618228,109900.0,109890.0,0.62174717]
[1761915032169,2.42981901,109920.0,109910.0,0.12737694]
[1761915032374,2.37618228,109920.0,109910.0,0.15469694]
[1761915032579,2.37618228,109920.0,109910.0,0.17763694]
[1761915032999,2.34,109920.0,109910.0,0.17763694]
[1761915033821,2.37618228,109920.0,109910.0,0.17763694]
[1761915034027,2.37818228,109920.0,109910.0,0.17763694]
[1761915034729,2.37718228,109920.0,109910.0,0.17763694]
[1761915034929,2.03618228,109920.0,109910.0,0.17763694]
[1761915035294,2.03618228,109920.0,109910.0,0.24971865]
[1761915036050,2.16354763,109920.0,109910.0,0.24971865]
[1761915036456,2.03618228,109920.0,109910.0,0.24971865]
[1761915036838,2.03618228,109920.0,109910.0,0.64404996]
[1761915037628,0.03618228,109920.0,109910.0,0.57296825]
[1761915038454,0.03618228,109920.0,109910.0,0.17863694]
[1761915039411,0.03618228,109920.0,109910.0,0.57296825]
[1761915040059,0.03618228,109920.0,109910.0,0.17863694]
[1761915045316,0.03618228,109920.0,109910.0,0.57296825]
[1761915046107,0.03618228,109920.0,109910.0,0.66278726]
[1761915046316,0.03618228,109920.0,109910.0,0.17863694]
[1761915046637,0.03618228,109920.0,109910.0,0.17813694]
[1761915050444,2.52168578,109930.0,109920.0,0.15485535]
[1761915050643,2.52168578,109930.0,109920.0,0.17867535]
[1761915051062,2.52168578,109930.0,109920.0,0.21047758]
[1761915051836,2.52168578,109930.0,109920.0,0.17867535]
[1761915052240,2.39433131,109930.0,109920.0,0.17867535]
[1761915052448,2.39533131,109930.0,109920.0,0.17867535]
[1761915052668,2.52268508,109930.0,109920.0,0.17867535]
[1761915053375,2.52368508,109930.0,109920.0,0.17867535]
[1761915054158,2.86368508,109930.0,109920.0,0.05131]
[1761915056471,2.46935377,109930.0,109920.0,0.05131]
[1761915056661,2.86368508,109930.0,109920.0,0.05131]
[1761915057600,2.88936508,109930.0,109920.0,0.02749]
[1761915059427,2.89778944,109930.0,109920.0,0.02749]
[1761915059827,0.16354763,109920.0,109900.0,0.01147]
[1761915060088,2.54638825,109910.0,109900.0,0.12738853]
[1761915060303,2.41901131,109910.0,109900.0,0.16287853]
[1761915060506,2.41901131,109910.0,109900.0,0.17869853]
[1761915060710,2.54638825,109910.0,109900.0,0.17869853]
[1761915061329,2.15205694,109910.0,109900.0,0.17969853]
[1761915061483,2.15205694,109910.0,109900.0,0.06234915]
[1761915061677,2.15205694,109910.0,109900.0,0.08616915]
[1761915061881,2.15205694,109910.0,109900.0,0.21355768]
[1761915062087,2.15205694,109910.0,109900.0,0.08616915]
[1761915062484,2.54635444,109910.0,109900.0,0.08516915]
[1761915062888,2.54635444,109910.0,109900.0,0.08816915]
[1761915063091,2.54635444,109910.0,109900.0,0.06434915]
[1761915063509,2.54635444,109910.0,109900.0,0.03149]
[1761915063711,2.54635444,109910.0,109900.0,0.15887853]
[1761915064066,2.4189775,109910.0,109900.0,0.18165853]
[1761915064232,2.4027275,109910.0,109900.0,0.18165853]
[1761915065592,2.4027275,109910.0,109900.0,0.05427]
[1761915065804,2.53010444,109910.0,109900.0,0.20207483]
[1761915066005,2.53010444,109910.0,109900.0,0.18165853]
[1761915066269,2.00843,109910.0,109900.0,0.18165853]
[1761915066480,2.4027275,109910.0,109900.0,0.18165853]
[1761915068016,2.34,109920.0,109910.0,0.12737694]
[1761915068225,0.34,109920.0,109910.0,0.19715364]
[1761915068639,0.7342975,109920.0,109910.0,0.19715364]
[1761915068851,0.7342975,109920.0,109910.0,0.17895694]
[1761915069206,2.86166285,109920.0,109910.0,0.05258]
[1761915069398,2.87716285,109920.0,109910.0,0.05258]
[1761915069612,3.27146035,109920.0,109910.0,0.0298]
[1761915069850,3.27989395,109920.0,109910.0,0.01334]
[1761915070063,3.27146035,109920.0,109910.0,0.01334]
[1761915070873,3.27146035,109920.0,109910.0,0.0298]
[1761915072167,3.41531164,109920.0,109910.0,0.001]
[1761915074776,3.42374633,109920.0,109910.0,0.001]
[1761915075574,3.47053407,109920.0,109910.0,0.001]
[1761915075777,3.43435179,109920.0,109910.0,0.001]
[1761915076511,3.45110108,109920.0,109910.0,0.001]
[1761915078169,3.46796622,109920.0,109910.0,0.001]
[1761915079198,3.45110108,109920.0,109910.0,0.001]
[1761915079603,3.43325108,109920.0,109910.0,0.001]
[1761915079950,3.45110108,109920.0,109910.0,0.001]
[1761915080149,3.46796299,109920.0,109910.0,0.001]
[1761915080411,3.48739139,109920.0,109910.0,0.001]
[1761915082400,2.69879639,109920.0,109910.0,0.001]
[1761915082611,3.48739139,109920.0,109910.0,0.001]
[1761915084491,3.46797468,109920.0,109910.0,0.001]
[1761915084668,3.48741559,109920.0,109910.0,0.001]
[1761915084895,3.46956559,109920.0,109910.0,0.001]
[1761915085081,3.48741559,109920.0,109910.0,0.001]
[1761915091985,3.46956559,109920.0,109910.0,0.01638]
[1761915092191,3.46956559,109920.0,109910.0,0.02852]
[1761915092396,3.46956559,109920.0,109910.0,0.052]
[1761915092606,3.46956559,109920.0,109910.0,0.02852]
[1761915093227,2.5031523,109920.0,109910.0,0.052]
[1761915093432,2.87009505,109920.0,109910.0,0.052]
[1761915093631,2.87009505,109920.0,109910.0,0.17937694]
[1761915093917,2.86166285,109920.0,109910.0,0.17937694]
[1761915094261,2.86166285,109920.0,109910.0,0.052]
[1761915095136,2.86166285,109920.0,109910.0,0.17937694]
[1761915095342,0.7342975,109920.0,109910.0,0.17937694]
[1761915095547,0.3942975,109920.0,109910.0,0.17937694]
[1761915096321,0.52166285,109920.0,109910.0,0.17937694]
[1761915096573,0.3942975,109920.0,109910.0,0.17937694]
[1761915097635,2.86165127,109930.0,109920.0,0.12736535]
[1761915097845,2.86165127,109930.0,109920.0,0.17836535]
[1761915098045,2.7342975,109930.0,109920.0,0.17836535]
[1761915098258,0.7342975,109930.0,109920.0,0.17836535]
[1761915098466,0.86165127,109930.0,109920.0,0.17836535]
[1761915099777,0.86265127,109930.0,109920.0,0.17836535]
[1761915100096,2.86265127,109930.0,109920.0,0.17836535]
[1761915100317,2.86365127,109930.0,109920.0,0.17836535]
[1761915100491,2.7362975,109930.0,109920.0,0.17836535]
[1761915100657,2.77247978,109930.0,109920.0,0.17809398]
[1761915101606,0.77247978,109930.0,109920.0,0.17809398]
[1761915102058,0.77247978,109930.0,109920.0,0.20985507]
[1761915103964,0.77247978,109930.0,109920.0,0.17809398]
[1761915105151,0.002,109930.0,109920.0,0.19628903]
[1761915105362,0.002,109930.0,109920.0,0.28610804]
[1761915105571,0.002,109930.0,109920.0,0.26791299]
[1761915105793,0.002,109930.0,109920.0,0.34808573]
[1761915106015,0.03618228,109940.0,109930.0,0.12735377]
[1761915106236,0.74856613,109950.0,109940.0,0.12734218]
[1761915106470,2.74856613,109950.0,109940.0,0.17869218]
[1761915106850,2.78519145,109950.0,109940.0,0.17869218]
[1761915107088,2.39089395,109950.0,109940.0,0.17869218]
[1761915107291,2.78533622,109950.0,109940.0,0.17869218]
[1761915107450,2.77106759,109950.0,109940.0,0.17869218]
[1761915107659,2.77106759,109950.0,109940.0,0.17903337]
[1761915107932,2.77106759,109950.0,109940.0,0.21085008]
[1761915107933,2.37677009,109950.0,109940.0,0.21085008]
[1761915108138,2.77106759,109950.0,109940.0,0.21085008]
[1761915108471,0.03677009,109950.0,109940.0,0.17903337]
[1761915108961,0.43106759,109950.0,109940.0,0.17903337]
[1761915109176,0.43106759,109950.0,109940.0,0.18003337]
[1761915110547,2.97705569,109950.0,109940.0,0.05269119]
[1761915110758,2.97705569,109950.0,109940.0,0.02863119]
[1761915111306,2.97705569,109950.0,109940.0,0.05269119]
[1761915112101,3.4068747,109950.0,109940.0,0.00134119]
[1761915112301,3.4068747,109950.0,109940.0,0.01685119]
[1761915113213,3.4068747,109950.0,109940.0,0.02863119]
[1761915113398,3.31705569,109950.0,109940.0,0.05269119]
[1761915114846,3.30112569,109950.0,109940.0,0.18003337]
[1761915115560,2.4757606,109950.0,109940.0,0.18003337]
[1761915115770,2.8700581,109950.0,109940.0,0.05269119]
[1761915115982,2.8859881,109950.0,109940.0,0.05269119]
[1761915116190,2.8859881,109950.0,109940.0,0.18003337]
[1761915116388,2.8700581,109950.0,109940.0,0.18003337]
[1761915117619,2.90624038,109950.0,109940.0,0.18003337]
[1761915119313,2.90624038,109950.0,109940.0,0.05269119]
[1761915120290,2.77890978,109950.0,109940.0,0.18003337]
[1761915120491,2.90624038,109950.0,109940.0,0.18003337]
[1761915120960,2.90624038,109950.0,109940.0,0.05269119]
[1761915121368,3.30008782,109950.0,109940.0,0.05269119]
[1761915122003,3.31601782,109950.0,109940.0,0.02863119]
[1761915122665,2.50351288,109950.0,109940.0,0.05913831]
[1761915122870,0.89758535,109950.0,109940.0,0.05913831]
[1761915123095,0.77025475,109950.0,109940.0,0.18003337]
[1761915123290,0.77025475,109950.0,109940.0,0.19822511]
[1761915123504,0.73407247,109950.0,109940.0,0.18003337]
[1761915123909,0.77025475,109950.0,109940.0,0.18003337]
[1761915124114,0.77025475,109950.0,109940.0,0.21195006]
[1761915124527,0.73407247,109950.0,109940.0,0.21195006]
[1761915126776,0.34,109950.0,109940.0,0.21195006]
[1761915126950,0.73407247,109950.0,109940.0,0.21195006]
[1761915127972,0.55999312,109960.0,109950.0,0.1273306]
[1761915127973,0.44151363,109960.0,109950.0,0.1273306]
[1761915128128,0.44151363,109960.0,109950.0,0.25201591]
[1761915128341,0.04744116,109960.0,109950.0,0.25201591]
[1761915128733,0.44173511,109960.0,109950.0,0.2523571]
[1761915128950,0.44173511,109960.0,109950.0,0.17902179]
[1761915129158,0.44173511,109960.0,109950.0,0.18002179]
[1761915130398,0.9631266,109960.0,109950.0,0.05269119]
[1761915130600,0.9631266,109960.0,109950.0,0.18002179]
[1761915130819,0.83580758,109960.0,109950.0,0.18002179]
[1761915131026,0.83580758,109960.0,109950.0,0.18302179]
[1761915131229,0.83580758,109960.0,109950.0,0.21842786]
[1761915132328,0.86314867,109960.0,109950.0,0.21842786]
[1761915133625,0.99046769,109960.0,109950.0,0.21842786]
[1761915134526,0.86314867,109960.0,109950.0,0.18302179]
[1761915134933,0.07500373,109960.0,109950.0,0.18302179]
[1761915135137,0.87160069,109960.0,109950.0,0.18302179]
[1761915137251,0.86314867,109960.0,109950.0,0.18302179]
[1761915137472,0.8715998,109960.0,109950.0,0.18302179]
[1761915137786,0.86314867,109960.0,109950.0,0.18302179]
[1761915138545,0.86314867,109960.0,109950.0,0.21842786]
[1761915139421,0.4690762,109960.0,109950.0,0.21842786]
[1761915140645,0.86314867,109960.0,109950.0,0.21842786]
[1761915143508,0.07500373,109960.0,109950.0,0.21842786]
[1761915143713,0.4690762,109960.0,109950.0,0.21842786]
[1761915143939,0.86314867,109960.0,109950.0,0.21842786]
[1761915144134,0.4690762,109960.0,109950.0,0.21842786]
[1761915144835,0.00022148,109960.0,109950.0,0.61250033]
[1761915145051,0.00022148,109960.0,109950.0,0.21842786]
[1761915145916,0.00022148,109960.0,109950.0,0.70231934]
[1761915147195,0.00022148,109960.0,109950.0,0.69931934]
[1761915147656,0.00022148,109960.0,109950.0,0.70531934]
[1761915147856,0.00022148,109960.0,109950.0,0.70731934]
[1761915148107,0.00022148,109960.0,109950.0,0.31324687]
[1761915148558,0.00022148,109960.0,109950.0,0.70731934]
[1761915152036,0.00022148,109960.0,109950.0,0.31324687]
[1761915152276,0.00022148,109960.0,109950.0,0.70731934]
[1761915152941,0.00022148,109960.0,109950.0,0.31324687]
[1761915154908,0.00022148,109960.0,109950.0,0.70731934]
[1761915158132,0.00022148,109960.0,109950.0,0.31324687]
[1761915158348,0.00022148,109960.0,109950.0,0.70731934]
[1761915159455,0.00022148,109960.0,109950.0,0.31324687]
[1761915159702,0.00022148,109960.0,109950.0,0.70731934]
[1761915166382,0.39407247,109970.0,109960.0,0.14366902]
[1761915166383,0.38947474,109970.0,109960.0,0.14366902]
[1761915166613,0.47072648,109980.0,109960.0,0.14366902]
[1761915166614,0.07665401,109980.0,109970.0,0.12730744]
[1761915166824,0.47072648,109980.0,109970.0,0.18023744]
[1761915167235,0.47072648,109980.0,109970.0,0.18057863]
[1761915167883,0.47072648,109980.0,109970.0,0.1987654]
[1761915168086,0.07665401,109980.0,109970.0,0.1987654]
[1761915168288,0.4345442,109980.0,109970.0,0.24073603]
[1761915168465,0.77025475,109990.0,109980.0,0.12729587]
[1761915168676,0.81864977,109990.0,109980.0,0.18022587]
[1761915168897,0.04839502,109990.0,109980.0,0.18022587]
[1761915169103,0.43402,109990.0,109980.0,0.18022587]
[1761915169312,0.43402,109990.0,109980.0,0.21709957]
[1761915170506,0.43502,109990.0,109980.0,0.21709957]
[1761915170850,0.01361312,109990.0,109980.0,0.21709957]
[1761915171053,0.40768559,109990.0,109980.0,0.21709957]
[1761915171256,0.00114482,109990.0,109980.0,0.21709957]
[1761915171460,0.00014482,109990.0,109980.0,0.21709957]
[1761915171640,0.39421729,109990.0,109980.0,0.21709957]
[1761915171845,0.39421729,109990.0,109980.0,0.21909957]
[1761915172344,0.00014482,109990.0,109980.0,0.22009957]